fUST/lending_fUST_20251217
["ID","MTS","AMOUNT","RATE_DAILY","PERIOD"]
[398868190,1765939870670,-151.0,0.00021918,2]
[398868191,1765939870680,-804.300529,0.00021918,2]
[398868192,1765939870689,-151.0,0.00021918,2]
[398868193,1765939870699,-151.0,0.00021918,2]
[398868194,1765939870708,-804.300529,0.00021918,2]
[398868195,1765939870722,-151.0,0.00021918,2]
[398868196,1765939870732,-151.0,0.00021918,2]
[398868197,1765939870742,-804.300529,0.00021918,2]
[398868198,1765939870756,-151.0,0.00021918,2]
[398868199,1765939870767,-151.0,0.00021918,2]
[398868200,1765939870777,-804.300529,0.00021918,2]
[398868201,1765939870789,-804.300529,0.00021918,2]
[398868202,1765939870799,-804.300529,0.00021918,2]
[398868203,1765939870809,-804.300529,0.00021918,2]
[398868204,1765939870819,-1804.728645,0.00021918,2]
[398868205,1765939870830,-804.300529,0.00021918,2]
[398868206,1765939870840,-1804.728645,0.00021918,2]
[398868207,1765939870850,-804.300529,0.00021918,2]
[398868208,1765939870860,-1804.728645,0.00021918,2]
[398868209,1765939870870,-250.066685,0.00021918,2]
[398868210,1765939870879,-151.0,0.00021918,2]
[398868211,1765939870889,-804.300529,0.00021918,2]
[398868212,1765939870899,-250.066685,0.00021918,2]
[398868213,1765939870908,-151.0,0.00021918,2]
[398868214,1765939870917,-804.300529,0.00021918,2]
[398868215,1765939870926,-1804.728645,0.00021918,2]
[398868216,1765939870935,-250.066685,0.00021918,2]
[398868217,1765939870944,-1804.728645,0.00021918,2]
[398868218,1765939870954,-182.90765,0.00021918,2]
[398868219,1765939870964,-804.300529,0.00021918,2]
[398868220,1765939870973,-151.0,0.00021918,2]
[398868221,1765939870982,-1804.728645,0.00021918,2]
[398868222,1765939870991,-182.90765,0.00021918,2]
[398868223,1765939871001,-250.066685,0.00021918,2]
[398868224,1765939871011,-182.90765,0.00021918,2]
[398868225,1765939871021,-250.066685,0.00021918,2]
[398868226,1765939871030,-1804.728645,0.00021918,2]
[398868227,1765939871040,-250.066685,0.00021918,2]
[398868228,1765939871049,-1804.728645,0.00021918,2]
[398868229,1765939871059,-182.90765,0.00021918,2]
[398868230,1765939871068,-1804.728645,0.00021918,2]
[398868231,1765939871077,-182.90765,0.00021918,2]
[398868232,1765939871087,-182.90765,0.00021918,2]
[398868233,1765939871097,-250.066685,0.00021918,2]
[398868234,1765939871107,-250.066685,0.00021918,2]
[398868235,1765939871116,-1804.728645,0.00021918,2]
[398868236,1765939871126,-250.066685,0.00021918,2]
[398868237,1765939871136,-1804.728645,0.00021918,2]
[398868238,1765939871145,-182.90765,0.00021918,2]
[398868239,1765939871154,-1804.728648,0.00021918,2]
[398868240,1765939871164,-182.90765,0.00021918,2]
[398868241,1765939871174,-182.90765,0.00021918,2]
[398868242,1765939871184,-250.066685,0.00021918,2]
[398868243,1765939871194,-250.066685,0.00021918,2]
[398868244,1765939871203,-250.066677,0.00021918,2]
[398868245,1765939871212,-182.90765,0.00021918,2]
[398868246,1765939871222,-182.90765,0.00021918,2]
[398868247,1765939871231,-234.857,0.00021918,2]
[398868248,1765939871240,-182.907641,0.00021918,2]
[398868249,1765939871250,-234.857,0.00021918,2]
[398868250,1765939871259,-234.857,0.00021918,2]
[398868251,1765939871268,-234.857,0.00021918,2]
[398868252,1765939871278,-234.857,0.00021918,2]
[398868253,1765939871287,-234.857,0.00021918,2]
[398868254,1765939871296,-234.857,0.00021918,2]
[398868255,1765939871306,-859.687086,0.00021918,2]
[398868256,1765939871316,-234.857,0.00021918,2]
[398868257,1765939871325,-859.687086,0.00021918,2]
[398868258,1765939871335,-234.857,0.00021918,2]
[398868259,1765939871344,-859.687086,0.00021918,2]
[398868260,1765939871354,-234.857,0.00021918,2]
[398868261,1765939871363,-234.857,0.00021918,2]
[398868262,1765939871373,-859.687086,0.00021918,2]
[398868263,1765939871382,-234.857008,0.00021918,2]
[398868264,1765939871391,-859.687086,0.00021918,2]
[398868265,1765939871401,-859.687086,0.00021918,2]
[398868266,1765939871410,-859.687086,0.00021918,2]
[398868267,1765939871419,-859.687086,0.00021918,2]
[398868268,1765939871428,-859.687086,0.00021918,2]
[398868269,1765939871438,-531.449808,0.00021918,2]
[398868270,1765939871447,-531.449808,0.00021918,2]
[398868271,1765939871457,-531.449808,0.00021918,2]
[398868272,1765939871467,-859.687086,0.00021918,2]
[398868273,1765939871477,-859.687086,0.00021918,2]
[398868274,1765939871487,-859.687093,0.00021918,2]
[398868275,1765939871497,-531.449808,0.00021918,2]
[398868276,1765939871506,-531.449808,0.00021918,2]
[398868277,1765939871516,-531.449808,0.00021918,2]
[398868278,1765939871526,-531.449808,0.00021918,2]
[398868279,1765939871536,-261.025031,0.00021918,2]
[398868280,1765939871546,-531.449808,0.00021918,2]
[398868281,1765939871556,-531.449808,0.00021918,2]
[398868282,1765939871565,-531.449808,0.00021918,2]
[398868283,1765939871575,-531.449808,0.00021918,2]
[398868284,1765939871585,-531.449814,0.00021918,2]
[398868285,1765939871595,-3700.699509,0.00021918,2]
[398868286,1765939871605,-3700.699509,0.00021918,2]
[398868287,1765939871615,-3700.699509,0.00021918,2]
[398868288,1765939871625,-3700.699509,0.00021918,2]
[398868289,1765939871634,-3700.699509,0.00021918,2]
[398868290,1765939871644,-3700.699509,0.00021918,2]
[398868291,1765939871653,-3700.699509,0.00021918,2]
[398868292,1765939871663,-3700.699509,0.00021918,2]
[398868293,1765939871673,-3700.699509,0.00021918,2]
[398868294,1765939871682,-3700.699509,0.00021918,2]
[398868295,1765939871691,-3700.699509,0.00021918,2]
[398868296,1765939871701,-3700.699515,0.00021918,2]
[398868297,1765939871715,-525.42533,0.00021918,2]
[398868298,1765939871730,-525.42533,0.00021918,2]
[398868299,1765939871739,-525.42533,0.00021918,2]
[398868300,1765939871749,-525.42533,0.00021918,2]
[398868301,1765939871762,-525.42533,0.00021918,2]
[398868302,1765939871771,-525.42533,0.00021918,2]
[398868303,1765939871781,-525.42533,0.00021918,2]
[398868304,1765939871796,-525.42533,0.00021918,2]
[398868305,1765939871806,-525.42533,0.00021918,2]
[398868306,1765939871815,-525.42533,0.00021918,2]
[398868307,1765939871824,-525.42533,0.00021918,2]
[398868308,1765939871835,-525.425323,0.00021918,2]
[398868309,1765939871845,-243.888532,0.00021918,2]
[398868310,1765939871855,-243.888532,0.00021918,2]
[398868311,1765939871864,-243.888532,0.00021918,2]
[398868312,1765939871874,-243.888532,0.00021918,2]
[398868313,1765939871883,-243.888532,0.00021918,2]
[398868314,1765939871893,-243.888532,0.00021918,2]
[398868315,1765939871902,-243.888532,0.00021918,2]
[398868316,1765939871912,-243.888532,0.00021918,2]
[398868317,1765939871921,-243.888532,0.00021918,2]
[398868318,1765939871932,-243.888532,0.00021918,2]
[398868319,1765939871942,-243.888532,0.00021918,2]
[398868320,1765939871951,-243.888525,0.00021918,2]
[398868321,1765939871960,-203.376539,0.00021918,2]
[398868322,1765939871970,-203.376539,0.00021918,2]
[398868323,1765939871979,-203.376539,0.00021918,2]
[398868324,1765939871988,-203.376539,0.00021918,2]
[398868325,1765939871998,-203.376539,0.00021918,2]
[398868326,1765939872008,-203.376539,0.00021918,2]
[398868327,1765939872018,-322.77385957,0.00021951,2]
[398868328,1765939872027,-508.41,0.00021952,5]
[398868329,1765939872036,-31479.67,0.00022,2]
[398868330,1765939872046,-10167.74943113,0.00022,2]
[398868331,1765939872055,-419.55858976,0.00022,2]
[398868332,1765939872065,-1111.11,0.00022,7]
[398868333,1765939872074,-16500.0,0.00022,2]
[398868334,1765939872084,-393.72583727,0.00022149,63]
[398868335,1765939872094,-192.89252513,0.00022149,63]
[398868336,1765939872104,-509.12493297,0.00022149,63]
[398868337,1765939872113,-223.46692238,0.00022149,63]
[398868338,1765939872123,-333.33333333,0.00022149,63]
[398868339,1765939872134,-5088.9669041,0.00022284,2]
[398868340,1765939872143,-720.0,0.00022324,10]
[398868341,1765939872153,-300.0,0.00022466,2]
[398868342,1765939872163,-500.0,0.000225,5]
[398868343,1765939872173,-1029.72295142,0.000225,2]
[398868344,1765939872182,-393.72583727,0.00022543,71]
[398868345,1765939872191,-509.12493297,0.00022543,71]
[398868346,1765939872202,-223.46692238,0.00022543,71]
[398868347,1765939872213,-333.33333333,0.00022543,71]
[398868348,1765939872223,-155.2562686,0.0002263,2]
[398868349,1765939872234,-159.01656192,0.0002264,74]
[398868350,1765939872244,-5000.0,0.00022815,2]
[398868351,1765939872253,-1135.5020003,0.00022843,2]
[398868352,1765939872262,-2000.0,0.00022851,7]
[398868353,1765939872272,-19691.0,0.000229,2]
[398868354,1765939872282,-393.72583727,0.00022937,79]
[398868355,1765939872292,-192.89252513,0.00022937,79]
[398868356,1765939872302,-509.12493297,0.00022937,79]
[398868357,1765939872311,-223.46692238,0.00022937,79]
[398868358,1765939872321,-333.33333333,0.00022937,79]
[398868359,1765939872331,-183.0,0.00023,7]
[398868360,1765939872341,-500.0,0.00023014,5]
[398868361,1765939872351,-450.0,0.00023014,2]
[398868362,1765939872360,-500.0,0.00023048,5]
[398868363,1765939872369,-31479.67,0.000231,2]
[398868364,1765939872379,-500.0,0.000231,7]
[398868365,1765939872388,-2000.0,0.00023209,7]
[398868366,1765939872397,-500.0,0.00023288,5]
[398868367,1765939872406,-393.72583727,0.0002333,86]
[398868368,1765939872415,-223.46692238,0.0002333,86]
[398868369,1765939872424,-509.12493297,0.0002333,86]
[398868370,1765939872434,-333.33333333,0.0002333,86]
[398868371,1765939872443,-159.01656192,0.0002355,92]
[398868372,1765939872452,-500.0,0.00023562,5]
[398868373,1765939872461,-600.0,0.00023562,2]
[398868374,1765939872471,-2000.0,0.00023566,7]
[398868375,1765939872479,-393.72583727,0.00023724,94]
[398868376,1765939872488,-192.89252513,0.00023724,94]
[398868377,1765939872497,-223.46692238,0.00023724,94]
[398868378,1765939872507,-509.12493297,0.00023724,94]
[398868379,1765939872515,-5000.0,0.00023744,2]
[398868380,1765939872524,-169.80568365,0.00023798,30]
[398868381,1765939872533,-223.46692236,0.00023798,30]
[398868382,1765939872542,-2000.0,0.00023923,7]
[398868383,1765939872551,-350.7062128,0.00023951,2]
[398868384,1765939872560,-3000.0,0.00024,2]
[398868385,1765939872569,-1730.98814041,0.00024,2]
[398868386,1765939872578,-464.44236024,0.00024,2]
[398868387,1765939872587,-189.49,0.00024,14]
[398868388,1765939872596,-151.75416825,0.00024,120]
[398868389,1765939872605,-31479.67,0.000241,2]
[398868390,1765939872614,-375.3470445,0.00024105,2]
[398868391,1765939872623,-500.0,0.0002411,5]
[398868392,1765939872632,-750.0,0.0002411,2]
[398868393,1765939872641,-393.72583727,0.00024118,102]
[398868394,1765939872650,-509.12493297,0.00024118,102]
[398868395,1765939872659,-223.46692238,0.00024118,102]
[398868396,1765939872668,-225066.93304165,0.00024142,2]
[398868397,1765939872677,-1513.79859168,0.00024142,2]
[398868398,1765939872686,-2000.0,0.00024281,7]
[398868399,1765939872695,-159.01656192,0.0002446,110]
[398868400,1765939872704,-501.90302049,0.000245,2]
[398868401,1765939872713,-190.8034903,0.00024511,110]
[398868402,1765939872722,-393.72583727,0.00024511,110]
[398868403,1765939872731,-192.89252513,0.00024511,110]
[398868404,1765939872740,-509.12493297,0.00024511,110]
[398868405,1765939872754,-864.0,0.00024556,10]
[398868406,1765939872763,-2000.0,0.00024638,7]
[398868407,1765939872772,-156495.85710785,0.0002465,2]
[398868408,1765939872782,-512.9463176,0.0002465,2]
[398868409,1765939872791,-500.0,0.00024658,5]
[398868410,1765939872801,-900.0,0.00024658,2]
[398868411,1765939872810,-150.0,0.00024658,2]
[398868412,1765939872819,-200.0,0.00024658,2]
[398868413,1765939872829,-380.0,0.00024658,2]
[398868414,1765939872838,-762.0,0.00024658,2]
[398868415,1765939872848,-5000.0,0.00024672,2]
[398868416,1765939872857,-10126.51412482,0.00024712,2]
[398868417,1765939872866,-16795.58711516,0.00024774,2]
[398868418,1765939873095,-762.0,0.00024795,2]
[398868419,1765939873105,-19691.0,0.000249,2]
[398868420,1765939873114,-639718.496246,0.000249,2]
[398868421,1765939873124,-762.0,0.00024932,2]
[398868422,1765939873132,-1196.522741,0.0002498,5]
[398868423,1765939873142,-2000.0,0.00024996,7]
[398868424,1765939873151,-3011932.92054087,0.00025,2]
[398868425,1765939873160,-83662.13509053,0.00025,2]
[398868426,1765939873169,-1027.78,0.00025,2]
[398868427,1765939873178,-150.22815713,0.00025,2]
[398868428,1765939873187,-1083.49062257,0.00025,2]
[398868429,1765939873196,-2669.73891967,0.00025,2]
[398868430,1765939873205,-10364.0,0.00025,2]
[398868431,1765939873214,-500.0,0.00025,2]
[398868432,1765939873230,-150.0,0.00025,2]
[398868433,1765939873250,-600.0,0.00025,2]
[398868434,1765939873264,-1470.71324491,0.00025,2]
[398868435,1765939873274,-757.29776177,0.00025,2]
[398868436,1765939873283,-384.6551012,0.00025,2]
[398868437,1765939873292,-10383.25454483,0.00025,2]
[398868438,1765939873301,-695.06594083,0.00025,2]
[398868439,1765939873310,-695.06594083,0.00025,2]
[398868440,1765939873320,-695.06594083,0.00025,2]
[398868441,1765939873329,-695.06594083,0.00025,2]
[398868442,1765939873338,-695.06594083,0.00025,2]
[398868443,1765939873347,-695.06594083,0.00025,2]
[398868444,1765939873356,-695.06594083,0.00025,2]
[398868445,1765939873365,-695.06594083,0.00025,2]
[398868446,1765939873374,-695.06594083,0.00025,2]
[398868447,1765939873383,-695.06594083,0.00025,2]
[398868448,1765939873391,-695.06594083,0.00025,2]
[398868449,1765939873400,-695.06594083,0.00025,2]
[398868450,1765939873409,-695.06594083,0.00025,2]
[398868451,1765939873419,-695.06594083,0.00025,2]
[398868452,1765939873429,-695.06594083,0.00025,2]
[398868453,1765939873438,-695.06594083,0.00025,2]
[398868454,1765939873447,-695.06594083,0.00025,2]
[398868455,1765939873456,-695.06594083,0.00025,2]
[398868456,1765939873465,-695.06594083,0.00025,2]
[398868457,1765939873474,-695.06594083,0.00025,2]
[398868458,1765939873482,-695.06594083,0.00025,2]
[398868459,1765939873491,-695.06594083,0.00025,2]
[398868460,1765939873502,-695.06594083,0.00025,2]
[398868461,1765939873511,-695.06594083,0.00025,2]
[398868462,1765939873521,-695.06594083,0.00025,2]
[398868463,1765939873530,-695.06594083,0.00025,2]
[398868464,1765939873538,-695.06594083,0.00025,2]
[398868465,1765939873547,-695.06594083,0.00025,2]
[398868466,1765939873557,-695.06594083,0.00025,2]
[398868467,1765939873566,-695.06594083,0.00025,2]
[398868468,1765939873575,-695.06594083,0.00025,2]
[398868469,1765939873584,-695.06594083,0.00025,2]
[398868470,1765939873593,-695.06594083,0.00025,2]
[398868471,1765939873602,-695.06594083,0.00025,2]
[398868472,1765939873611,-695.06594083,0.00025,2]
[398868473,1765939873620,-695.06594083,0.00025,2]
[398868474,1765939873629,-25000.0,0.00025,2]
[398868475,1765939873638,-154.45909798,0.00025,2]
[398868476,1765939873647,-154.45909798,0.00025,2]
[398868477,1765939873656,-154.45909798,0.00025,2]
[398868478,1765939873665,-154.45909798,0.00025,2]
[398868479,1765939873673,-154.45909798,0.00025,2]
[398868480,1765939873683,-154.45909798,0.00025,2]
[398868481,1765939873692,-154.45909798,0.00025,2]
[398868482,1765939873701,-154.45909798,0.00025,2]
[398868483,1765939873710,-154.45909797,0.00025,2]
[398868484,1765939873720,-154.45909796,0.00025,2]
[398868485,1765939873730,-154.45909796,0.00025,2]
[398868486,1765939873739,-154.45909796,0.00025,2]
[398868487,1765939873751,-154.45909796,0.00025,2]
[398868488,1765939873761,-154.45909796,0.00025,2]
[398868489,1765939873770,-154.45909796,0.00025,2]
[398868490,1765939873780,-154.45909796,0.00025,2]
[398868491,1765939873790,-154.45909796,0.00025,2]
[398868492,1765939873799,-154.45909796,0.00025,2]
[398868493,1765939873809,-159.53764159,0.00025,2]
[398868494,1765939873819,-236.82303299,0.00025,120]
[398868495,1765939873829,-387.0,0.00025,120]
[398868496,1765939873842,-1000.0,0.00025,5]
[398868497,1765939873851,-154.09925235,0.00025,30]
[398868498,1765939873861,-397.1500583,0.00025063,2]
[398868499,1765939873870,-375.3470445,0.00025063,2]
[398868500,1765939873879,-762.0,0.00025069,2]
[398868501,1765939873889,-600.46,0.000251,7]
[398868502,1765939873897,-31479.67,0.000252,2]
[398868503,1765939873907,-250.0,0.00025205,2]
[398868504,1765939873916,-1021.43709923,0.00025205,2]
[398868505,1765939873926,-762.0,0.00025206,2]
[398868506,1765939873935,-164.3685793,0.00025233,2]
[398868507,1765939873944,-1111.11,0.000253,7]
[398868508,1765939873954,-270.278837,0.00025342,2]
[398868509,1765939873963,-762.0,0.00025343,2]
[398868510,1765939873974,-2000.0,0.00025353,7]
[398868511,1765939873983,-900.0,0.00025469,3]
[398868512,1765939873992,-762.0,0.0002548,2]
[398868513,1765939874001,-1000.0,0.000255,2]
[398868514,1765939874010,-5000.0,0.00025601,2]
[398868515,1765939874019,-762.0,0.00025617,2]
[398868516,1765939874028,-2000.0,0.00025711,7]
[398868517,1765939874037,-350.0,0.00025753,2]
[398868518,1765939874047,-762.0,0.00025754,2]
[398868519,1765939874056,-762.0,0.00025891,2]
[398868520,1765939874066,-189.49,0.000259,14]
[398868521,1765939874076,-378.63856603,0.00025951,2]
[398868522,1765939874086,-528.84158541,0.00026,2]
[398868523,1765939874095,-19900.0,0.00026,2]
[398868524,1765939874103,-375.3470445,0.00026022,2]
[398868525,1765939874113,-375.3470445,0.00026022,2]
[398868526,1765939874122,-375.3470445,0.00026022,2]
[398868527,1765939874132,-375.3470445,0.00026022,2]
[398868528,1765939874142,-375.3470445,0.00026022,2]
[398868529,1765939874151,-375.3470445,0.00026022,2]
[398868530,1765939874160,-375.3470445,0.00026022,2]
[398868531,1765939874169,-375.3470445,0.00026022,2]
[398868532,1765939874178,-375.3470445,0.00026022,2]
[398868533,1765939874187,-178.9312697,0.00026022,2]
[398868534,1765939874195,-327.38733263,0.00026028,2]
[398868535,1765939874524,-434.61266737,0.00026028,2]
[398868536,1765939874534,-179.73040439,0.0002604,2]
[398868537,1765939874543,-2000.0,0.00026068,7]
[398868538,1765939874553,-194.23219761,0.0002616,2]
[398868539,1765939874562,-762.0,0.00026165,2]
[398868540,1765939874571,-1295.78609317,0.000262,2]
[398868541,1765939874693,150.0,7.423e-05,2]
[398868542,1765939874729,150.0,7.777e-05,2]
[398868543,1765939874783,186.26,8.13e-05,2]
[398868544,1765939874826,248.35,8.484e-05,2]
[398868545,1765939874862,310.44,8.837e-05,2]
[398868546,1765939874903,372.53,9.191e-05,2]
[398868547,1765939874945,434.62,9.544e-05,2]
[398868548,1765939934335,154.09,7.55e-05,2]
[398868549,1765939934756,308.17,7.91e-05,2]
[398868550,1765939935231,462.26,8.269e-05,2]
[398868551,1765939935637,616.34,8.629e-05,2]
[398868552,1765939936061,770.43,8.989e-05,2]
[398868553,1765939936477,924.51,9.348e-05,2]
[398868554,1765940014226,150.0,8.606e-05,2]
[398868555,1765940014630,299.04,9.016e-05,2]
[398868556,1765940015034,448.55,9.426e-05,2]
[398868557,1765940094708,150.0,8.054e-05,2]
[398868558,1765940095129,299.1,8.438e-05,2]
[398868559,1765940095529,448.65,8.821e-05,2]
[398868560,1765940095935,598.2,9.205e-05,2]
[398868561,1765940096330,747.74,9.588e-05,2]
[398868562,1765940173725,150.0,8.529e-05,2]
[398868563,1765940174381,241.99,8.935e-05,2]
[398868564,1765940174782,362.98,9.341e-05,2]
[398868565,1765940253053,150.0,7.397e-05,2]
[398868566,1765940253504,222.77,7.749e-05,2]
[398868567,1765940253895,334.15,8.101e-05,2]
[398868568,1765940254334,445.54,8.453e-05,2]
[398868569,1765940254753,556.92,8.805e-05,2]
[398868570,1765940255183,668.3,9.158e-05,2]
[398868571,1765940255570,779.69,9.51e-05,2]
[398868572,1765940331576,150.0,7.422e-05,2]
[398868573,1765940331969,150.0,7.776e-05,2]
[398868574,1765940332360,213.6,8.129e-05,2]
[398868575,1765940332762,284.8,8.482e-05,2]
[398868576,1765940333212,356.0,8.836e-05,2]
[398868577,1765940333635,427.2,9.189e-05,2]
[398868578,1765940334033,498.4,9.543e-05,2]
[398868579,1765940409905,150.0,7.402e-05,2]
[398868580,1765940410333,150.0,7.754e-05,2]
[398868581,1765940410765,150.0,8.107e-05,2]
[398868582,1765940411171,178.91,8.459e-05,2]
[398868583,1765940411586,223.63,8.812e-05,2]
[398868584,1765940412015,268.36,9.164e-05,2]
[398868585,1765940412424,313.09,9.517e-05,2]
[398868588,1765940469818,5000.0,9.64e-05,2]
[398868589,1765940482384,150.0,7.987e-05,2]
[398868590,1765940482534,150.0,8.367e-05,2]
[398868591,1765940482960,150.0,8.748e-05,2]
[398868592,1765940483364,150.0,9.128e-05,2]
[398868593,1765940483828,150.0,9.508e-05,2]
[398868594,1765940554873,150.0,7.459e-05,2]
[398868595,1765940555287,150.0,7.814e-05,2]
[398868596,1765940556211,150.0,8.169e-05,2]
[398868597,1765940556624,150.0,8.525e-05,2]
[398868598,1765940557028,150.0,8.88e-05,2]
[398868599,1765940557453,150.0,9.235e-05,2]
[398868600,1765940557880,150.0,9.59e-05,2]
[398868601,1765940624592,150.0,8.047e-05,2]
[398868604,1765940957166,-557.0,9.763e-05,2]
[398868605,1765940957186,-1200.0,9.956e-05,2]
[398868606,1765940957206,-300.0,9.956e-05,2]
[398868607,1765940957226,-300.0,9.957e-05,2]
[398868608,1765940957246,-300.0,9.957e-05,2]
[398868609,1765940957266,-300.0,9.957e-05,2]
[398868610,1765940957289,-300.0,9.957e-05,2]
[398868611,1765940957310,-300.0,9.957e-05,2]
[398868612,1765940957331,-300.0,9.957e-05,2]
[398868613,1765940957352,-300.0,9.957e-05,2]
[398868614,1765940957372,-300.0,9.957e-05,2]
[398868615,1765940957391,-300.0,9.957e-05,2]
[398868616,1765940957410,-300.0,9.957e-05,2]
[398868617,1765940957431,-300.0,9.957e-05,2]
[398868618,1765940957455,-300.0,9.957e-05,2]
[398868619,1765940957475,-300.0,9.957e-05,2]
[398868620,1765940957495,-300.0,9.957e-05,2]
[398868621,1765940957514,-300.0,9.957e-05,2]
[398868622,1765940957533,-154.68,0.0001,2]
[398868623,1765940957552,-600.0,0.00010155,2]
[398868624,1765940957572,-253.0,0.00010952,2]
[398868625,1765940957591,-420.0,0.00010952,2]
[398868626,1765940957612,-720.0,0.00011171,2]
[398868627,1765940957629,-171.61854832,0.00011577,2]
[398868628,1765940957648,-177.0,0.00011763,2]
[398868629,1765940957665,-264.0,0.00012047,2]
[398868630,1765940957685,-864.0,0.00012288,2]
[398868631,1765940957704,-500.0,0.00013272,2]
[398868632,1765940957724,-388.26604722,0.00013272,2]
[398868633,1765940957743,-268.02337801,0.00013272,2]
[398868634,1765940957763,-500.0,0.00013272,2]
[398868635,1765940957782,-482.98053501,0.00013272,2]
[398868636,1765940957800,-505.08269593,0.00013273,2]
[398868637,1765940957818,-503.52832888,0.00013273,2]
[398868638,1765940958103,-500.0,0.00013273,2]
[398868639,1765940958121,-500.0,0.00013273,2]
[398868640,1765940958140,-500.0,0.00013273,2]
[398868641,1765940958161,-500.0,0.00013273,2]
[398868642,1765940958182,-443.91652653,0.00013273,2]
[398868643,1765940968182,-63.84289396,0.00013273,2]
[398868644,1765940968206,-500.0,0.00013273,2]
[398868645,1765940968227,-1000.0,0.00013516,2]
[398868646,1765940968246,-501.38634066,0.00013699,2]
[398868647,1765940968264,-505.59118412,0.00013699,2]
[398868648,1765940968282,-503.37474473,0.00013699,2]
[398868649,1765940968303,-204.0,0.00013763,2]
[398868650,1765940968323,-1000.0,0.00013821,2]
[398868651,1765940968342,-1000.0,0.00013821,2]
[398868652,1765940968361,-1000.0,0.00013821,2]
[398868653,1765940968381,-500.0,0.00014146,2]
[398868654,1765940968404,-509.02656417,0.00014146,3]
[398868655,1765940968424,-500.0,0.00014368,2]
[398868656,1765940968446,-507.21829996,0.00014368,2]
[398868657,1765940968466,-1000.0,0.00014368,2]
[398868658,1765940968486,-198.08824625,0.00014398,2]
[398868659,1765940968505,-207.7315039,0.00014682,2]
[398868660,1765940968525,-160.0,0.00014803,2]
[398868661,1765940968544,-443.75,0.00014827,2]
[398868662,1765940968568,-129185.89736626,0.00014828,2]
[398868664,1765941031690,-154.68,0.0001,2]
[398868665,1765941031700,-150.0,0.00012414,2]
[398868666,1765941031708,-177.0,0.00014414,2]
[398868667,1765941031718,-357833.24500547,0.00014828,2]
[398868668,1765941031730,-972.72,0.00014828,2]
[398868713,1765941037772,-402008.13762827,0.00014828,2]
[398868714,1765941037782,-198.08824625,0.00014828,2]
[398868715,1765941037790,-151.0,0.000149,2]
[398868716,1765941037799,-887.13895914,0.000149,2]
[398868717,1765941037808,-998.60195726,0.00014927,2]
[398868718,1765941037817,-151.0,0.00015,2]
[398868719,1765941037826,-151.0,0.00015,2]
[398868720,1765941037835,-100000.0,0.00015028,2]
[398868721,1765941037843,-220.775713,0.00015068,2]
[398868722,1765941037852,-300.0,0.00015123,2]
[398868723,1765941037861,-300.0,0.00015123,2]
[398868724,1765941037870,-300.0,0.00015123,2]
[398868725,1765941037879,-300.0,0.00015123,2]
[398868726,1765941037887,-300.0,0.00015123,2]
[398868727,1765941037896,-300.0,0.00015123,2]
[398868728,1765941037905,-300.0,0.00015123,2]
[398868729,1765941037914,-300.0,0.00015123,2]
[398868730,1765941037923,-300.0,0.00015123,2]
[398868731,1765941037932,-300.0,0.00015123,2]
[398868732,1765941037941,-300.0,0.00015123,2]
[398868733,1765941037949,-300.0,0.00015123,2]
[398868734,1765941037959,-300.0,0.00015123,2]
[398868735,1765941037967,-300.0,0.00015123,2]
[398868736,1765941037976,-300.0,0.00015123,2]
[398868737,1765941037985,-600.0,0.00015123,2]
[398868738,1765941037994,-168.0,0.00015534,3]